fUST/lending_fUST_20260501
["ID","MTS","AMOUNT","RATE_DAILY","PERIOD"]
[421419763,1777609839000,-500.0,0.00017839,2]
[421419762,1777609839000,-864.0,0.00017824,2]
[421419767,1777609839000,-500.0,0.00018082,2]
[421419772,1777609839000,-2150.738,0.00018218,2]
[421419764,1777609839000,-151.0,0.000179,2]
[421419770,1777609839000,-185.0,0.00018142,2]
[421419783,1777609839000,-151.0,0.00018514,2]
[421419771,1777609839000,-151.0,0.000182,2]
[421419761,1777609839000,-151.0,0.000178,2]
[421419765,1777609839000,-1508.0,0.00018064,2]
[421419769,1777609839000,-500.0,0.00018113,2]
[421419754,1777609839000,-500.0,0.00017681,12]
[421419768,1777609839000,-151.0,0.000181,2]
[421419758,1777609839000,-176.41313832,0.00017759,2]
[421419755,1777609839000,-500.0,0.00017681,13]
[421419753,1777609839000,-500.0,0.00017681,11]
[421419752,1777609839000,-500.0,0.00017681,10]
[421419751,1777609839000,-500.0,0.00017681,9]
[421419782,1777609839000,-325.5777581,0.00018514,2]
[421419749,1777609839000,-500.0,0.00017681,7]
[421419756,1777609839000,-151.0,0.000177,2]
[421419750,1777609839000,-500.0,0.00017681,8]
[421419748,1777609839000,-500.0,0.00017681,6]
[421419747,1777609839000,-500.0,0.00017681,5]
[421419757,1777609839000,-277.60702724,0.0001772,2]
[421419774,1777609839000,-1508.0,0.00018338,2]
[421419766,1777609839000,-296.4471481,0.0001808,2]
[421419775,1777609839000,-200.0,0.0001844,2]
[421419803,1777609839000,-200.0,0.00019,7]
[421419800,1777609839000,-151.0,0.000189,2]
[421419801,1777609839000,-169.70608775,0.00018973,2]
[421419798,1777609839000,-310.5781,0.00018867,2]
[421419799,1777609839000,-1508.0,0.00018886,2]
[421419802,1777609839000,-200.0,0.00018999,2]
[421419797,1777609839000,-235.28905,0.00018867,2]
[421419795,1777609839000,-152.6068402,0.00018821,30]
[421419790,1777609839000,-763.05224525,0.00018794,2]
[421419788,1777609839000,-267.876,0.00018636,2]
[421419789,1777609839000,-151.0,0.000187,2]
[421419794,1777609839000,-295.0569019,0.00018821,30]
[421419793,1777609839000,-175.787345,0.00018816,2]
[421419787,1777609839000,-264.492,0.00018615,2]
[421419791,1777609839000,-158.59110887,0.000188,2]
[421419792,1777609839000,-226.600873,0.00018816,2]
[421419785,1777609839000,-151.0,0.000186,2]
[421419796,1777609839000,-160.0,0.00018867,2]
[421419786,1777609839000,-1508.0,0.00018612,2]
[421419784,1777609839000,-455.1222652,0.00018514,2]
[421419776,1777609839000,-200.0,0.0001844,2]
[421419805,1777609839000,-29123.70283594,0.00019,4]
[421419777,1777609839000,-200.0,0.0001844,2]
[421419779,1777609839000,-201.04939882,0.0001844,2]
[421419778,1777609839000,-200.0,0.0001844,2]
[421419781,1777609839000,-151.0,0.000185,2]
[421419780,1777609839000,-176.41313832,0.00018473,2]
[421419804,1777609839000,-185686.6839373,0.00019,4]
[421419773,1777609839000,-151.0,0.000183,2]
[421419810,1777609840000,-736.46436495,0.00019,4]
[421419809,1777609840000,-415.519,0.00019,4]
[421419819,1777609843000,-2461.52326438,0.00019,4]
[421419818,1777609843000,-3393.1107164,0.00019,4]
[421419820,1777609843000,-1233.93026423,0.00019,4]
[421419816,1777609843000,-4753.11244523,0.00019,4]
[421419817,1777609843000,-2018.49751663,0.00019,4]
[421419815,1777609843000,-91443.33205971,0.00019,4]
[421419814,1777609843000,-508.70149683,0.00018794,2]
[421419839,1777609846000,-169320.04937263,0.00019,4]
[421419838,1777609846000,-339.13433122,0.00018794,2]
[421419841,1777609846000,-16741.41589322,0.00019,4]
[421419840,1777609846000,-7994.59678313,0.00019,4]
[421419842,1777609856000,2675.46885792,7.6e-05,2]
[421419966,1777610442000,202.72,0.00021918,120]
[421420017,1777611032000,-300.0,0.00013832,2]
[421420013,1777611032000,-300.0,0.00013832,2]
[421420011,1777611032000,-300.0,0.00013832,2]
[421420016,1777611032000,-300.0,0.00013832,2]
[421420012,1777611032000,-300.0,0.00013832,2]
[421420010,1777611032000,-300.0,0.00013832,2]
[421420005,1777611032000,-2750.0,0.00012897,2]
[421420019,1777611032000,-300.0,0.00013832,2]
[421420020,1777611032000,-300.0,0.00013832,2]
[421420009,1777611032000,-300.0,0.00013832,2]
[421420006,1777611032000,-236.94081868,0.00012897,2]
[421420004,1777611032000,-2013.05918132,0.00012897,2]
[421420007,1777611032000,-183.03737495,0.0001321,2]
[421420008,1777611032000,-1000.0,0.00013699,2]
[421420015,1777611032000,-300.0,0.00013832,2]
[421420023,1777611032000,-300.0,0.00013832,2]
[421420018,1777611032000,-300.0,0.00013832,2]
[421420014,1777611032000,-300.0,0.00013832,2]
[421420035,1777611032000,-1872.53791547,0.00017342,2]
[421420025,1777611032000,-500.0,0.00013952,2]
[421420032,1777611032000,-864.0,0.0001707,2]
[421420031,1777611032000,-720.0,0.00015518,2]
[421420027,1777611032000,-600.0,0.00014108,2]
[421420024,1777611032000,-2449.21,0.00013853,2]
[421420034,1777611032000,-160.0,0.00017265,2]
[421420033,1777611032000,-248.93082994,0.0001721,2]
[421420029,1777611032000,-850.85556603,0.00015003,2]
[421420022,1777611032000,-300.0,0.00013832,2]
[421420021,1777611032000,-300.0,0.00013832,2]
[421420028,1777611032000,-393.36443397,0.00015003,2]
[421420026,1777611032000,-1244.22,0.00013952,2]
[421420030,1777611032000,-215.98410245,0.0001521,2]
[421420052,1777611038000,-456.0872352,0.00017692,2]
[421420058,1777611038000,-500.0,0.00018455,3]
[421420060,1777611038000,-456.0872351,0.00018519,2]
[421420059,1777611038000,-160.0,0.00018455,3]
[421420061,1777611038000,-289.1066655,0.00018519,2]
[421420051,1777611038000,-1244.22,0.00017679,2]
[421420063,1777611038000,-151.0,0.00018529,2]
[421420062,1777611038000,-327.4208118,0.00018519,2]
[421420074,1777611038000,-500.0,0.00018698,2]
[421420075,1777611038000,-500.0,0.00018698,2]
[421420065,1777611038000,-244.007,0.00018615,2]
[421420070,1777611038000,-167.75856922,0.00018698,2]
[421420069,1777611038000,-500.0,0.00018698,2]
[421420057,1777611038000,-185.0,0.00018188,2]
[421420056,1777611038000,-442.0,0.00018188,2]
[421420053,1777611038000,-4000.0,0.00017918,2]
[421420054,1777611038000,-537.6845,0.00018178,2]
[421420036,1777611038000,-566.0,0.00017342,2]
[421420039,1777611038000,-1244.22,0.00017581,2]
[421420038,1777611038000,-176.41313832,0.00017481,2]
[421420046,1777611038000,-1244.22,0.00017581,2]
[421420044,1777611038000,-1244.22,0.00017581,2]
[421420047,1777611038000,-1244.22,0.00017581,2]
[421420037,1777611038000,-2127.46208453,0.00017342,2]
[421420043,1777611038000,-1244.22,0.00017581,2]
[421420048,1777611038000,-1244.22,0.00017581,2]
[421420042,1777611038000,-1244.22,0.00017581,2]
[421420045,1777611038000,-1244.22,0.00017581,2]
[421420041,1777611038000,-1244.22,0.00017581,2]
[421420040,1777611038000,-1244.22,0.00017581,2]
[421420049,1777611038000,-1244.22,0.00017581,2]
[421420050,1777611038000,-4000.0,0.00017616,2]
[421420055,1777611038000,-2150.738,0.00018178,2]
[421420073,1777611038000,-500.0,0.00018698,2]
[421420064,1777611038000,-299.88,0.00018614,2]
[421420066,1777611038000,-238.32471943,0.00018688,2]
[421420100,1777611038000,-500.0,0.00018797,2]
[421420094,1777611038000,-500.0,0.00018797,2]
[421420067,1777611038000,-500.0,0.00018698,2]
[421420098,1777611038000,-450.0,0.00018797,2]
[421420096,1777611038000,-500.0,0.00018797,2]
[421420091,1777611038000,-500.0,0.00018797,2]
[421420090,1777611038000,-500.0,0.00018797,2]
[421420089,1777611038000,-500.0,0.00018797,2]
[421420097,1777611038000,-500.0,0.00018797,2]
[421420099,1777611038000,-500.0,0.00018797,2]
[421420103,1777611038000,-500.0,0.00018797,2]
[421420102,1777611038000,-500.0,0.00018797,2]
[421420105,1777611038000,-65175.18137346,0.00018798,2]
[421420104,1777611038000,-188.82745728,0.00018797,2]
[421420093,1777611038000,-500.0,0.00018797,2]
[421420092,1777611038000,-500.0,0.00018797,2]
[421420101,1777611038000,-500.0,0.00018797,2]
[421420086,1777611038000,-160.0,0.00018794,2]
[421420071,1777611038000,-500.0,0.00018698,2]
[421420072,1777611038000,-489.74470351,0.00018698,2]
[421420095,1777611038000,-179.49550936,0.00018797,2]
[421420083,1777611038000,-500.0,0.00018729,3]
[421420076,1777611038000,-500.0,0.00018698,2]
[421420088,1777611038000,-312.30382831,0.00018797,2]
[421420079,1777611038000,-442.55378625,0.00018698,2]
[421420087,1777611038000,-185.39931413,0.00018794,2]
[421420080,1777611038000,-4040.28593478,0.000187,2]
[421420078,1777611038000,-569.50369943,0.00018698,2]
[421420085,1777611038000,-712.5023282,0.00018794,2]
[421420084,1777611038000,-1000.0,0.00018777,2]
[421420068,1777611038000,-500.0,0.00018698,2]
[421420082,1777611038000,-2230.315306,0.00018726,2]
[421420077,1777611038000,-500.0,0.00018698,2]
[421420081,1777611038000,-557.5788265,0.00018726,2]
[421420131,1777611046000,-346.82645594,0.00018794,2]
[421420132,1777611047000,-128.17509619,0.00018794,2]
[421420133,1777611047000,-1129.69678388,0.00018798,2]
[421420208,1777611693000,-200.0,0.0001257,2]
[421420209,1777611716000,-5000.0,0.00012636,2]
[421420210,1777611734000,-500.0,0.00013216,2]
[421420212,1777611752000,-500.0,0.00013216,2]
[421420214,1777611775000,-500.0,0.00013216,2]
[421420421,1777612232000,-463.43528478,0.00013367,2]
[421420423,1777612232000,-415.50854083,0.00013367,2]
[421420429,1777612232000,-1768.748,0.00013367,2]
[421420525,1777612238000,-1488.65183019,0.000171,2]
[421420499,1777612238000,-194.48961356,0.00013503,2]
[421420500,1777612238000,-1000.0,0.00013699,2]
[421420498,1777612238000,-2352.30817439,0.00013367,2]
[421420503,1777612238000,-300.0,0.0001397,2]
[421420502,1777612238000,-1200.0,0.00013969,2]
[421420501,1777612238000,-200.13351787,0.000139,2]
[421420504,1777612238000,-300.0,0.0001397,2]
[421420506,1777612238000,-300.0,0.0001397,2]
[421420507,1777612238000,-300.0,0.00013972,2]
[421420508,1777612238000,-300.0,0.00013972,2]
[421420505,1777612238000,-300.0,0.0001397,2]
[421420509,1777612238000,-300.0,0.00013972,2]
[421420511,1777612238000,-300.0,0.00013972,2]
[421420516,1777612238000,-300.0,0.00013972,2]
[421420510,1777612238000,-300.0,0.00013972,2]
[421420515,1777612238000,-300.0,0.00013972,2]
[421420524,1777612238000,-229.497744,0.00015503,2]
[421420522,1777612238000,-37515.85719302,0.00013972,2]
[421420523,1777612238000,-176.41313832,0.00015403,2]
[421420521,1777612238000,-300.0,0.00013972,2]
[421420520,1777612238000,-300.0,0.00013972,2]
[421420526,1777612238000,-151.90973864,0.00017195,2]
[421420519,1777612238000,-300.0,0.00013972,2]
[421420517,1777612238000,-300.0,0.00013972,2]
[421420513,1777612238000,-300.0,0.00013972,2]
[421420512,1777612238000,-300.0,0.00013972,2]
[421420514,1777612238000,-300.0,0.00013972,2]
[421420518,1777612238000,-300.0,0.00013972,2]
[421420566,1777612239000,-500.0,0.00017295,2]
[421420580,1777612239000,-353.87091777,0.00017295,2]
[421420569,1777612239000,-500.0,0.00017295,2]
[421420571,1777612239000,-500.0,0.00017295,2]
[421420570,1777612239000,-500.0,0.00017295,2]
[421420565,1777612239000,-500.0,0.00017295,2]
[421420561,1777612239000,-500.0,0.00017295,2]
[421420564,1777612239000,-500.0,0.00017295,2]
[421420568,1777612239000,-500.0,0.00017295,2]
[421420562,1777612239000,-500.0,0.00017295,2]
[421420560,1777612239000,-500.0,0.00017295,2]
[421420559,1777612239000,-500.0,0.00017295,2]
[421420563,1777612239000,-500.0,0.00017295,2]
[421420574,1777612239000,-500.0,0.00017295,2]
[421420588,1777612239000,-500.0,0.00017295,2]
[421420577,1777612239000,-500.0,0.00017295,2]
[421420578,1777612239000,-500.0,0.00017295,2]
[421420576,1777612239000,-500.0,0.00017295,2]
[421420579,1777612239000,-500.0,0.00017295,2]
[421420573,1777612239000,-500.0,0.00017295,2]
[421420584,1777612239000,-500.0,0.00017295,2]
[421420583,1777612239000,-500.0,0.00017295,2]
[421420582,1777612239000,-500.0,0.00017295,2]
[421420592,1777612239000,-716.10091501,0.00017329,2]
[421420585,1777612239000,-500.0,0.00017295,2]
[421420581,1777612239000,-500.0,0.00017295,2]
[421420586,1777612239000,-331.07522702,0.00017295,2]
[421420567,1777612239000,-500.0,0.00017295,2]
[421420575,1777612239000,-500.0,0.00017295,2]
[421420558,1777612239000,-500.0,0.00017295,2]
[421420544,1777612239000,-500.0,0.00017295,2]
[421420556,1777612239000,-500.0,0.00017295,2]
[421420529,1777612239000,-500.0,0.00017295,2]
[421420528,1777612239000,-500.0,0.00017295,2]
[421420527,1777612239000,-500.0,0.00017295,2]
[421420531,1777612239000,-500.0,0.00017295,2]
[421420532,1777612239000,-284.30434328,0.00017295,2]
[421420542,1777612239000,-535.16813694,0.00017295,2]
[421420534,1777612239000,-500.0,0.00017295,2]
[421420530,1777612239000,-500.0,0.00017295,2]
[421420541,1777612239000,-500.0,0.00017295,2]
[421420536,1777612239000,-500.0,0.00017295,2]
[421420538,1777612239000,-500.0,0.00017295,2]
[421420537,1777612239000,-500.0,0.00017295,2]
[421420535,1777612239000,-500.0,0.00017295,2]
[421420533,1777612239000,-500.0,0.00017295,2]
[421420540,1777612239000,-500.0,0.00017295,2]
[421420539,1777612239000,-500.0,0.00017295,2]
[421420545,1777612239000,-500.0,0.00017295,2]
[421420589,1777612239000,-500.0,0.00017295,2]
[421420548,1777612239000,-500.0,0.00017295,2]
[421420543,1777612239000,-500.0,0.00017295,2]
[421420546,1777612239000,-446.7382894,0.00017295,2]
[421420549,1777612239000,-500.0,0.00017295,2]
[421420552,1777612239000,-500.0,0.00017295,2]
[421420547,1777612239000,-500.0,0.00017295,2]
[421420551,1777612239000,-500.0,0.00017295,2]
[421420550,1777612239000,-500.0,0.00017295,2]
[421420554,1777612239000,-500.0,0.00017295,2]
[421420555,1777612239000,-500.0,0.00017295,2]
[421420553,1777612239000,-500.0,0.00017295,2]
[421420557,1777612239000,-542.04297138,0.00017295,2]
[421420587,1777612239000,-500.0,0.00017295,2]
[421420572,1777612239000,-500.0,0.00017295,2]
[421420590,1777612239000,-500.0,0.00017297,2]
[421420626,1777612239000,-1475.2595951,0.00018019,2]
[421420629,1777612239000,-152.0,0.00018164,7]
[421420628,1777612239000,-2150.738,0.00018105,2]
[421420633,1777612239000,-1410.0,0.00018188,2]
[421420631,1777612239000,-277.7566862,0.00018188,2]
[421420632,1777612239000,-646.0,0.00018188,2]
[421420630,1777612239000,-152.0,0.00018164,7]
[421420635,1777612239000,-4000.0,0.00018329,2]
[421420646,1777612239000,-184.859,0.0001862,2]
[421420634,1777612239000,-2211.0,0.00018188,2]
[421420637,1777612239000,-160.0,0.00018426,2]
[421420636,1777612239000,-1508.0,0.00018368,2]
[421420642,1777612239000,-439.3027964,0.00018545,2]
[421420638,1777612239000,-151.9097386,0.00018474,2]
[421420641,1777612239000,-151.0,0.00018545,2]
[421420639,1777612239000,-325.1416627,0.00018545,2]
[421420643,1777612239000,-455.9339617,0.00018545,2]
[421420640,1777612239000,-151.0,0.00018545,2]
[421420644,1777612239000,-151.0,0.00018545,2]
[421420648,1777612239000,-500.0,0.00018699,2]
[421420649,1777612239000,-620.8782591,0.00018745,30]
[421420647,1777612239000,-162.09897232,0.00018653,2]
[421420650,1777612239000,-233.643365,0.00018745,2]
[421420651,1777612239000,-151.0,0.00018745,2]
[421420655,1777612239000,-233.643365,0.00018745,2]
[421420653,1777612239000,-151.0,0.00018745,2]
[421420652,1777612239000,-233.643365,0.00018745,2]
[421420591,1777612239000,-3546.78911211,0.000173,2]
[421420656,1777612239000,-1385.885834,0.00018745,2]
[421420625,1777612239000,-3001.2311114,0.00018019,2]
[421420627,1777612239000,-151.9097386,0.00018048,2]
[421420654,1777612239000,-233.643365,0.00018745,2]
[421420624,1777612239000,-4000.0,0.00017863,2]
[421420621,1777612239000,-500.0,0.00017817,6]
[421420593,1777612239000,-500.0,0.00017342,2]
[421420597,1777612239000,-4000.0,0.0001737,2]
[421420595,1777612239000,-515.84,0.00017342,2]
[421420605,1777612239000,-500.0,0.00017798,2]
[421420604,1777612239000,-155.05454244,0.000177,2]
[421420606,1777612239000,-500.0,0.00017798,3]
[421420599,1777612239000,-500.0,0.00017616,2]
[421420602,1777612239000,-185.0,0.000177,2]
[421420603,1777612239000,-151.90607771,0.000177,2]
[421420598,1777612239000,-264.50587444,0.00017503,2]
[421420594,1777612239000,-518.43,0.00017342,2]
[421420600,1777612239000,-151.9097386,0.00017621,2]
[421420601,1777612239000,-600.0,0.00017645,2]
[421420608,1777612239000,-175.1867,0.00017799,2]
[421420596,1777612239000,-500.0,0.00017342,2]
[421420619,1777612239000,-151.0,0.000178,2]
[421420618,1777612239000,-151.0,0.000178,2]
[421420622,1777612239000,-502.390667,0.00017817,7]
[421420620,1777612239000,-500.0,0.00017816,5]
[421420617,1777612239000,-151.0,0.000178,2]
[421420613,1777612239000,-151.0,0.000178,2]
[421420612,1777612239000,-151.0,0.000178,2]
[421420623,1777612239000,-1508.0,0.0001782,2]
[421420610,1777612239000,-151.0,0.000178,2]
[421420611,1777612239000,-151.0,0.000178,2]
[421420614,1777612239000,-151.0,0.000178,2]
[421420609,1777612239000,-151.0,0.000178,2]
[421420615,1777612239000,-151.0,0.000178,2]
[421420616,1777612239000,-151.0,0.000178,2]
[421420607,1777612239000,-500.0,0.00017798,4]
[421420706,1777612240000,-454.673982,0.00018999,2]
[421420710,1777612240000,-454.673982,0.00018999,2]
[421420711,1777612240000,-454.673982,0.00018999,2]
[421420701,1777612240000,-392.182478,0.00018999,2]
[421420708,1777612240000,-454.673982,0.00018999,2]
[421420695,1777612240000,-518.43,0.00018999,2]
[421420694,1777612240000,-518.43,0.00018999,2]
[421420696,1777612240000,-518.43,0.00018999,2]
[421420693,1777612240000,-518.43,0.00018999,2]
[421420692,1777612240000,-518.43,0.00018999,2]
[421420703,1777612240000,-392.182478,0.00018999,2]
[421420697,1777612240000,-518.5308668,0.00018999,2]
[421420691,1777612240000,-518.43,0.00018999,2]
[421420715,1777612240000,-4888.430466,0.00018999,2]
[421420705,1777612240000,-392.182478,0.00018999,2]
[421420712,1777612240000,-4888.430466,0.00018999,2]
[421420714,1777612240000,-4888.430466,0.00018999,2]
[421420716,1777612240000,-4417.553658,0.00018999,2]
[421420726,1777612240000,-233.643365,0.00018999,2]
[421420724,1777612240000,-151.0,0.00018999,2]
[421420720,1777612240000,-233.643365,0.00018999,2]
[421420718,1777612240000,-4417.553658,0.00018999,2]
[421420717,1777612240000,-4417.553658,0.00018999,2]
[421420725,1777612240000,-233.643365,0.00018999,2]
[421420722,1777612240000,-233.643365,0.00018999,2]
[421420721,1777612240000,-151.0,0.00018999,2]
[421420689,1777612240000,-518.43,0.00018999,2]
[421420704,1777612240000,-392.182478,0.00018999,2]
[421420688,1777612240000,-518.43,0.00018999,2]
[421420671,1777612240000,-1508.0,0.00018916,2]
[421420686,1777612240000,-518.43,0.00018999,2]
[421420719,1777612240000,-4417.553658,0.00018999,2]
[421420659,1777612240000,-1385.885834,0.00018745,2]
[421420658,1777612240000,-1385.885834,0.00018745,2]
[421420657,1777612240000,-1385.885834,0.00018745,2]
[421420661,1777612240000,-172.94428,0.00018745,2]
[421420662,1777612240000,-172.94428,0.00018745,2]
[421420663,1777612240000,-172.94428,0.00018745,2]
[421420672,1777612240000,-160.0,0.00018985,4]
[421420664,1777612240000,-172.94428,0.00018745,2]
[421420674,1777612240000,-155.0,0.00018999,2]
[421420673,1777612240000,-518.43,0.00018998,2]
[421420669,1777612240000,-518.43,0.00018843,2]
[421420670,1777612240000,-151.9097386,0.000189,2]
[421420667,1777612240000,-417.79,0.00018797,2]
[421420668,1777612240000,-4000.0,0.00018822,2]
[421420665,1777612240000,-600.53371931,0.00018794,2]
[421420666,1777612240000,-500.0,0.00018797,2]
[421420680,1777612240000,-518.43,0.00018999,2]
[421420677,1777612240000,-518.43,0.00018999,2]
[421420684,1777612240000,-518.43,0.00018999,2]
[421420685,1777612240000,-518.43,0.00018999,2]
[421420681,1777612240000,-518.43,0.00018999,2]
[421420675,1777612240000,-518.43,0.00018999,2]
[421420676,1777612240000,-518.43,0.00018999,2]
[421420683,1777612240000,-518.43,0.00018999,2]
[421420678,1777612240000,-518.43,0.00018999,2]
[421420687,1777612240000,-518.43,0.00018999,2]
[421420679,1777612240000,-518.43,0.00018999,2]
[421420727,1777612240000,-1385.885834,0.00018999,2]
[421420713,1777612240000,-4888.430466,0.00018999,2]
[421420730,1777612240000,-1385.885834,0.00018999,2]
[421420764,1777612240000,-392.182478,0.00019,2]
[421420759,1777612240000,-528.52,0.00019,7]
[421420763,1777612240000,-158.0,0.00019,2]
[421420762,1777612240000,-866.0,0.00019,2]
[421420760,1777612240000,-394.99,0.00019,2]
[421420754,1777612240000,-201.87810706,0.00018999,2]
[421420761,1777612240000,-469.0,0.00019,2]
[421420769,1777612240000,-392.182478,0.00019,2]
[421420780,1777612240000,-454.673982,0.00019,2]
[421420776,1777612240000,-454.673982,0.00019,2]
[421420771,1777612240000,-392.182478,0.00019,2]
[421420778,1777612240000,-454.673982,0.00019,2]
[421420770,1777612240000,-392.182478,0.00019,2]
[421420757,1777612240000,-501.45615327,0.00019,2]
[421420775,1777612240000,-392.182478,0.00019,2]
[421420777,1777612240000,-454.673982,0.00019,2]
[421420774,1777612240000,-392.182478,0.00019,2]
[421420781,1777612240000,-454.673982,0.00019,2]
[421420779,1777612240000,-454.673982,0.00019,2]
[421420772,1777612240000,-392.182478,0.00019,2]
[421420773,1777612240000,-392.182478,0.00019,2]
[421420785,1777612240000,-454.673982,0.00019,2]
[421420782,1777612240000,-454.673982,0.00019,2]
[421420786,1777612240000,-454.673982,0.00019,2]
[421420784,1777612240000,-454.673982,0.00019,2]
[421420789,1777612240000,-454.673982,0.00019,2]
[421420788,1777612240000,-454.673982,0.00019,2]
[421420738,1777612240000,-151.0,0.00018999,2]
[421420768,1777612240000,-392.182478,0.00019,2]
[421420756,1777612240000,-300000.64843793,0.00019,7]
[421420787,1777612240000,-454.673982,0.00019,2]
[421420767,1777612240000,-392.182478,0.00019,2]
[421420758,1777612240000,-579.49,0.00019,2]
[421420740,1777612240000,-804.177038,0.00018999,2]
[421420728,1777612240000,-1385.885834,0.00018999,2]
[421420739,1777612240000,-151.0,0.00018999,2]
[421420732,1777612240000,-172.94428,0.00018999,2]
[421420736,1777612240000,-151.0,0.00018999,2]
[421420735,1777612240000,-151.0,0.00018999,2]
[421420733,1777612240000,-172.94428,0.00018999,2]
[421420737,1777612240000,-206.207941,0.00018999,2]
[421420731,1777612240000,-172.94428,0.00018999,2]
[421420734,1777612240000,-172.94428,0.00018999,2]
[421420741,1777612240000,-804.177038,0.00018999,2]
[421420790,1777612240000,-454.673982,0.00019,2]
[421420744,1777612240000,-804.177038,0.00018999,2]
[421420729,1777612240000,-1385.885834,0.00018999,2]
[421420743,1777612240000,-804.177038,0.00018999,2]
[421420753,1777612240000,-7761.494452,0.00018999,2]
[421420766,1777612240000,-392.182478,0.00019,2]
[421420755,1777612240000,-179390.34113626,0.00019,4]
[421420765,1777612240000,-392.182478,0.00019,2]
[421420749,1777612240000,-151.0,0.00018999,2]
[421420750,1777612240000,-7761.494452,0.00018999,2]
[421420747,1777612240000,-804.177038,0.00018999,2]
[421420748,1777612240000,-151.0,0.00018999,2]
[421420746,1777612240000,-804.177038,0.00018999,2]
[421420752,1777612240000,-7761.494452,0.00018999,2]
[421420745,1777612240000,-804.177038,0.00018999,2]
[421420742,1777612240000,-804.177038,0.00018999,2]
[421420751,1777612240000,-7761.494452,0.00018999,2]
[421420829,1777612241000,-151.0,0.00019,2]
[421420836,1777612241000,-233.643365,0.00019,2]
[421420837,1777612241000,-233.643365,0.00019,2]
[421420833,1777612241000,-157.648018,0.00019,2]
[421420828,1777612241000,-233.643365,0.00019,2]
[421420823,1777612241000,-4417.553658,0.00019,2]
[421420832,1777612241000,-233.643365,0.00019,2]
[421420835,1777612241000,-233.643365,0.00019,2]
[421420827,1777612241000,-151.0,0.00019,2]
[421420825,1777612241000,-4417.553666,0.00019,2]
[421420819,1777612241000,-4417.553658,0.00019,2]
[421420830,1777612241000,-233.643365,0.00019,2]
[421420826,1777612241000,-233.643365,0.00019,2]
[421420844,1777612241000,-1385.885834,0.00019,2]
[421420834,1777612241000,-233.643365,0.00019,2]
[421420838,1777612241000,-233.643365,0.00019,2]
[421420840,1777612241000,-233.643365,0.00019,2]
[421420839,1777612241000,-233.643365,0.00019,2]
[421420842,1777612241000,-1385.885834,0.00019,2]
[421420850,1777612241000,-1385.885834,0.00019,2]
[421420852,1777612241000,-1385.885834,0.00019,2]
[421420851,1777612241000,-1385.885834,0.00019,2]
[421420841,1777612241000,-233.64337,0.00019,2]
[421420846,1777612241000,-1385.885834,0.00019,2]
[421420847,1777612241000,-1385.885834,0.00019,2]
[421420817,1777612241000,-4417.553658,0.00019,2]
[421420845,1777612241000,-1385.885834,0.00019,2]
[421420831,1777612241000,-151.0,0.00019,2]
[421420822,1777612241000,-4417.553658,0.00019,2]
[421420800,1777612241000,-4888.430466,0.00019,2]
[421420816,1777612241000,-4417.553658,0.00019,2]
[421420843,1777612241000,-1385.885834,0.00019,2]
[421420795,1777612241000,-4888.430466,0.00019,2]
[421420794,1777612241000,-4888.430466,0.00019,2]